[Event "*** Titled Tuesday Blitz"]
[Site "Chess.com"]
[Date "2021.03.02"]
[Round "7"]
[White "PushingpawnsNYC"]
[Black "Herman-NY"]
[Result "1-0"]
[WhiteElo "2325"]
[BlackElo "2452"]
[TimeControl "180+1"]
[EndTime "11:17:49 PST"]
[Termination "PushingpawnsNYC won by resignation"]

1. e4 {[%clk 0:03:00.9]} 1... e5 {[%clk 0:03:00.1]} 2. Nf3 {[%clk 0:03:00.7]}
2... Nc6 {[%clk 0:03:00.6]} 3. d4 {[%clk 0:03:00.6]} 3... exd4 {[%clk
0:03:00.7]} 4. Nxd4 {[%clk 0:03:01.5]} 4... Nf6 {[%clk 0:03:01.1]} 5. Nxc6
{[%clk 0:02:59.8]} 5... bxc6 {[%clk 0:03:01.9]} 6. Qe2 {[%clk 0:02:59.8]} 6...
d6 {[%clk 0:02:18.6]} 7. Nc3 {[%clk 0:02:57.3]} 7... Be7 {[%clk 0:02:16.2]} 8.
Bg5 {[%clk 0:02:56.3]} 8... O-O {[%clk 0:02:16.3]} 9. O-O-O {[%clk 0:02:56.2]}
9... Nd7 {[%clk 0:02:16.4]} 10. Bxe7 {[%clk 0:02:44.8]} 10... Qxe7 {[%clk
0:02:17.3]} 11. f4 {[%clk 0:02:39.7]} 11... Rb8 {[%clk 0:02:10.3]} 12. Qc4
{[%clk 0:02:26.2]} 12... Bb7 {[%clk 0:02:10]} 13. Bd3 {[%clk 0:02:12.8]} 13...
Nb6 {[%clk 0:01:25.7]} 14. Qb4 {[%clk 0:02:06.8]} 14... c5 {[%clk 0:01:02.1]}
15. Qa5 {[%clk 0:02:04.7]} 15... c4 {[%clk 0:00:53.7]} 16. Be2 {[%clk
0:02:03.9]} 16... Bxe4 {[%clk 0:00:52.6]} 17. Rhe1 {[%clk 0:01:50.1]} 17... Bc6
{[%clk 0:00:27.8]} 18. Bf3 {[%clk 0:01:40.9]} 18... Qd7 {[%clk 0:00:27.3]} 19.
f5 {[%clk 0:01:20.3]} 19... f6 {[%clk 0:00:20.8]} 20. Bh5 {[%clk 0:01:06.5]}
20... Bxg2 {[%clk 0:00:17.2]} 21. Rg1 {[%clk 0:00:57.8]} 21... Bc6 {[%clk
0:00:08.1]} 22. Rd4 {[%clk 0:00:55.4]} 22... Kh8 {[%clk 0:00:06.1]} 23. Rdg4
{[%clk 0:00:49.1]} 23... Rg8 {[%clk 0:00:06.4]} 24. Bg6 {[%clk 0:00:46.5]} 24...
h6 {[%clk 0:00:06.4]} 25. Rh4 {[%clk 0:00:40.3]} 25... Rbe8 {[%clk 0:00:06.5]}
26. Nd1 {[%clk 0:00:39.4]} 26... Re5 {[%clk 0:00:06.3]} 27. Qd2 {[%clk
0:00:39.4]} 27... Qe7 {[%clk 0:00:03.2]} 28. Rxh6+ {[%clk 0:00:37.1]} 28... gxh6
{[%clk 0:00:04.1]} 29. Qxh6+ {[%clk 0:00:37.1]} 1-0

[Event "*** Titled Tuesday Blitz"]
[Site "Chess.com"]
[Date "2021.03.02"]
[Round "7"]
[White "azikom"]
[Black "Ghost_Pepper"]
[Result "1-0"]
[WhiteElo "2661"]
[BlackElo "2377"]
[TimeControl "180+1"]
[EndTime "11:17:52 PST"]
[Termination "azikom won on time"]

1. d4 {[%clk 0:03:00.5]} 1... Nf6 {[%clk 0:02:59.2]} 2. Nf3 {[%clk 0:02:59.2]}
2... g6 {[%clk 0:02:59.2]} 3. Bf4 {[%clk 0:02:59.6]} 3... d5 {[%clk 0:02:58.3]}
4. e3 {[%clk 0:02:59.4]} 4... c5 {[%clk 0:02:57.9]} 5. c3 {[%clk 0:02:59.1]}
5... Nc6 {[%clk 0:02:58.4]} 6. Nbd2 {[%clk 0:02:58.3]} 6... Bg7 {[%clk
0:02:58.6]} 7. dxc5 {[%clk 0:02:58.2]} 7... Nd7 {[%clk 0:02:49.3]} 8. Nb3 {[%clk
0:02:57.2]} 8... e5 {[%clk 0:02:35.3]} 9. Bg5 {[%clk 0:02:55.8]} 9... f6 {[%clk
0:02:35.5]} 10. Bh4 {[%clk 0:02:55.9]} 10... e4 {[%clk 0:02:28.6]} 11. Nfd4
{[%clk 0:02:53.2]} 11... Nde5 {[%clk 0:02:27.9]} 12. Be2 {[%clk 0:02:52.9]}
12... O-O {[%clk 0:02:26.7]} 13. O-O {[%clk 0:02:53.3]} 13... Qc7 {[%clk
0:02:11.3]} 14. Nb5 {[%clk 0:02:47.8]} 14... Qf7 {[%clk 0:02:10.7]} 15. Nd6
{[%clk 0:02:47.2]} 15... Qe6 {[%clk 0:02:09.2]} 16. Rc1 {[%clk 0:02:46.6]} 16...
Ne7 {[%clk 0:01:41.4]} 17. c4 {[%clk 0:02:37.7]} 17... dxc4 {[%clk 0:01:34.4]}
18. Bxc4 {[%clk 0:02:34.1]} 18... Nxc4 {[%clk 0:01:33.6]} 19. Rxc4 {[%clk
0:02:33.8]} 19... f5 {[%clk 0:01:26.4]} 20. Nd4 {[%clk 0:02:26.5]} 20... Qd7
{[%clk 0:01:22.5]} 21. Qb3 {[%clk 0:02:15.5]} 21... Kh8 {[%clk 0:01:22]} 22. Rd1
{[%clk 0:02:14.2]} 22... Nc6 {[%clk 0:01:17.4]} 23. Nxc6 {[%clk 0:02:08.6]}
23... Qxc6 {[%clk 0:01:18.3]} 24. Nxc8 {[%clk 0:02:07.5]} 24... Raxc8 {[%clk
0:01:16.9]} 25. Rd6 {[%clk 0:02:02.2]} 25... Qc7 {[%clk 0:01:12.2]} 26. Bg3
{[%clk 0:01:58.7]} 26... Qf7 {[%clk 0:01:06.8]} 27. h4 {[%clk 0:01:34.1]} 27...
Rc6 {[%clk 0:01:06.2]} 28. Rxc6 {[%clk 0:01:31.8]} 28... bxc6 {[%clk 0:01:07.1]}
29. Rb4 {[%clk 0:01:29.2]} 29... Qf6 {[%clk 0:00:30.7]} 30. Bd6 {[%clk
0:01:26.3]} 30... Rd8 {[%clk 0:00:29.1]} 31. g3 {[%clk 0:01:25.7]} 31... g5
{[%clk 0:00:28.9]} 32. hxg5 {[%clk 0:01:25]} 32... Qxg5 {[%clk 0:00:29.8]} 33.
Rb8 {[%clk 0:01:21.8]} 33... Bf6 {[%clk 0:00:23.9]} 34. Rxd8+ {[%clk 0:01:20.1]}
34... Bxd8 {[%clk 0:00:23.7]} 35. Qf7 {[%clk 0:01:18.5]} 35... f4 {[%clk
0:00:06]} 36. exf4 {[%clk 0:01:16.3]} 36... Qg4 {[%clk 0:00:01.2]} 37. Be5+
{[%clk 0:01:10.5]} 1-0

[Event "*** Titled Tuesday Blitz"]
[Site "Chess.com"]
[Date "2021.03.02"]
[Round "7"]
[White "j2806"]
[Black "ChessFighter1975"]
[Result "0-1"]
[WhiteElo "2087"]
[BlackElo "2343"]
[TimeControl "180+1"]
[EndTime "11:17:55 PST"]
[Termination "ChessFighter1975 won by resignation"]

1. e4 {[%clk 0:03:00.9]} 1... d6 {[%clk 0:02:56.9]} 2. d4 {[%clk 0:03:00.3]}
2... Nf6 {[%clk 0:02:56.7]} 3. Nc3 {[%clk 0:02:57.8]} 3... Nbd7 {[%clk 0:02:57]}
4. Be3 {[%clk 0:02:58.3]} 4... e5 {[%clk 0:02:57]} 5. d5 {[%clk 0:02:54.1]} 5...
c6 {[%clk 0:02:55.7]} 6. f3 {[%clk 0:02:54.6]} 6... cxd5 {[%clk 0:02:54.5]} 7.
Nxd5 {[%clk 0:02:55.1]} 7... Nxd5 {[%clk 0:02:53]} 8. Qxd5 {[%clk 0:02:54.8]}
8... Be7 {[%clk 0:02:53.1]} 9. O-O-O {[%clk 0:02:54]} 9... O-O {[%clk
0:02:52.7]} 10. g4 {[%clk 0:02:53.5]} 10... a6 {[%clk 0:02:49.6]} 11. h4 {[%clk
0:02:53.1]} 11... Nf6 {[%clk 0:02:46.8]} 12. Qd2 {[%clk 0:02:51.1]} 12... Be6
{[%clk 0:02:45.1]} 13. Kb1 {[%clk 0:02:50.7]} 13... Rc8 {[%clk 0:02:30.9]} 14.
h5 {[%clk 0:02:47.2]} 14... h6 {[%clk 0:02:26.6]} 15. g5 {[%clk 0:02:39]} 15...
hxg5 {[%clk 0:02:25]} 16. Bxg5 {[%clk 0:02:38.8]} 16... Rc6 {[%clk 0:02:19.8]}
17. Qg2 {[%clk 0:02:30.9]} 17... Nh7 {[%clk 0:02:07.7]} 18. Bxe7 {[%clk
0:02:22.7]} 18... Qxe7 {[%clk 0:02:06.9]} 19. Ne2 {[%clk 0:02:17]} 19... Qg5
{[%clk 0:01:58.7]} 20. Qh2 {[%clk 0:02:12.8]} 20... Rfc8 {[%clk 0:01:57.2]} 21.
Nc3 {[%clk 0:02:05.2]} 21... b5 {[%clk 0:01:55]} 22. Bd3 {[%clk 0:02:03.8]}
22... b4 {[%clk 0:01:52.7]} 23. Nd5 {[%clk 0:02:03.3]} 23... Bxd5 {[%clk
0:01:46.4]} 24. exd5 {[%clk 0:02:03.5]} 24... Rc5 {[%clk 0:01:47]} 25. Rhg1
{[%clk 0:01:51.1]} 25... Qh6 {[%clk 0:01:47]} 26. Qh3 {[%clk 0:01:42.7]} 26...
Nf6 {[%clk 0:01:41.9]} 27. Bxa6 {[%clk 0:01:19.6]} 27... R8c7 {[%clk 0:01:37.9]}
28. Bd3 {[%clk 0:01:16.2]} 28... Nxd5 {[%clk 0:01:32]} 29. Rc1 {[%clk
0:00:57.9]} 29... Nf4 {[%clk 0:01:29.1]} 30. Qf5 {[%clk 0:00:52.3]} 30... Nxd3
{[%clk 0:01:16]} 31. Qxd3 {[%clk 0:00:51.1]} 31... d5 {[%clk 0:00:58.6]} 32. Qf5
{[%clk 0:00:48.5]} 32... b3 {[%clk 0:00:48.3]} 33. axb3 {[%clk 0:00:45.2]} 33...
Ra7 {[%clk 0:00:46.6]} 34. Qxe5 {[%clk 0:00:28.2]} 34... Rca5 {[%clk 0:00:46.3]}
35. c3 {[%clk 0:00:20.5]} 35... Qh7+ {[%clk 0:00:45.4]} 0-1

[Event "*** Titled Tuesday Blitz"]
[Site "Chess.com"]
[Date "2021.03.02"]
[Round "7"]
[White "Korchmar_Vasiliy"]
[Black "AlexTriapishko"]
[Result "1-0"]
[WhiteElo "2655"]
[BlackElo "2790"]
[TimeControl "180+1"]
[EndTime "11:17:56 PST"]
[Termination "Korchmar_Vasiliy won on time"]

1. d4 {[%clk 0:03:00.9]} 1... Nf6 {[%clk 0:02:59.9]} 2. Nf3 {[%clk 0:03:01.5]}
2... e6 {[%clk 0:03:00.8]} 3. Bf4 {[%clk 0:03:01.8]} 3... c5 {[%clk 0:02:59.4]}
4. e3 {[%clk 0:03:01.8]} 4... cxd4 {[%clk 0:03:00]} 5. exd4 {[%clk 0:03:02.7]}
5... b6 {[%clk 0:03:00.5]} 6. Nbd2 {[%clk 0:03:02.5]} 6... Bb7 {[%clk
0:03:00.9]} 7. Bd3 {[%clk 0:03:01.7]} 7... Be7 {[%clk 0:03:01.3]} 8. h3 {[%clk
0:03:01.3]} 8... O-O {[%clk 0:03:01.8]} 9. O-O {[%clk 0:03:01.4]} 9... d6 {[%clk
0:03:02.3]} 10. Qe2 {[%clk 0:03:01.1]} 10... a6 {[%clk 0:03:01.9]} 11. a4 {[%clk
0:03:00.6]} 11... Nbd7 {[%clk 0:03:02]} 12. Bh2 {[%clk 0:02:59.8]} 12... Qc7
{[%clk 0:03:01.3]} 13. Rfc1 {[%clk 0:02:52.7]} 13... Rfe8 {[%clk 0:02:56.6]} 14.
a5 {[%clk 0:02:52.1]} 14... b5 {[%clk 0:02:25.1]} 15. c4 {[%clk 0:02:52.1]}
15... bxc4 {[%clk 0:02:24]} 16. Nxc4 {[%clk 0:02:53]} 16... Qb8 {[%clk
0:02:22.9]} 17. b4 {[%clk 0:02:43.9]} 17... Bc6 {[%clk 0:01:37]} 18. Ne3 {[%clk
0:02:04.9]} 18... Qb7 {[%clk 0:01:25.3]} 19. Nd2 {[%clk 0:01:51.2]} 19... Nd5
{[%clk 0:00:56.3]} 20. Nec4 {[%clk 0:01:35.8]} 20... Nxb4 {[%clk 0:00:36.8]} 21.
Rab1 {[%clk 0:01:33.9]} 21... Bxg2 {[%clk 0:00:36.9]} 22. Nxd6 {[%clk
0:01:21.5]} 22... Bxd6 {[%clk 0:00:29.9]} 23. Bxd6 {[%clk 0:01:22.4]} 23... Qd5
{[%clk 0:00:16.4]} 24. Bxb4 {[%clk 0:01:14.7]} 24... Nf6 {[%clk 0:00:13.6]} 25.
Rc5 {[%clk 0:01:09.5]} 25... Qxd4 {[%clk 0:00:10]} 26. Kxg2 {[%clk 0:01:06.9]}
26... Rad8 {[%clk 0:00:08.9]} 27. Rb3 {[%clk 0:01:06.7]} 27... Nd5 {[%clk
0:00:08.9]} 28. Rxd5 {[%clk 0:00:54.3]} 28... Rxd5 {[%clk 0:00:06.9]} 29. Nf3
{[%clk 0:00:51]} 29... Qf4 {[%clk 0:00:06.2]} 30. Qe4 {[%clk 0:00:48.5]} 30...
Qxe4 {[%clk 0:00:03.9]} 31. Bxe4 {[%clk 0:00:49.4]} 31... Rb5 {[%clk 0:00:04.8]}
32. Bc6 {[%clk 0:00:48.4]} 1-0

[Event "*** Titled Tuesday Blitz"]
[Site "Chess.com"]
[Date "2021.03.02"]
[Round "7"]
[White "K_A_S_T_O_R"]
[Black "Gusarov91"]
[Result "1-0"]
[WhiteElo "2769"]
[BlackElo "2521"]
[TimeControl "180+1"]
[EndTime "11:17:56 PST"]
[Termination "K_A_S_T_O_R won by resignation"]

1. e4 {[%clk 0:03:00.9]} 1... c6 {[%clk 0:03:00.1]} 2. c4 {[%clk 0:03:00.3]}
2... c5 {[%clk 0:02:59.6]} 3. Nf3 {[%clk 0:02:59.1]} 3... Nc6 {[%clk 0:03:00]}
4. d4 {[%clk 0:02:59]} 4... cxd4 {[%clk 0:03:00.6]} 5. Nxd4 {[%clk 0:02:59.4]}
5... g6 {[%clk 0:03:00.5]} 6. Be3 {[%clk 0:02:57.8]} 6... Bg7 {[%clk 0:03:00.9]}
7. Nc3 {[%clk 0:02:57.8]} 7... d6 {[%clk 0:03:00.3]} 8. Be2 {[%clk 0:02:56.9]}
8... Nxd4 {[%clk 0:03:00.3]} 9. Bxd4 {[%clk 0:02:56.5]} 9... Nf6 {[%clk
0:03:00.9]} 10. O-O {[%clk 0:02:56]} 10... O-O {[%clk 0:03:00.5]} 11. b4 {[%clk
0:02:54.7]} 11... Be6 {[%clk 0:02:58.8]} 12. f3 {[%clk 0:02:48.6]} 12... b6
{[%clk 0:02:56.5]} 13. Rc1 {[%clk 0:02:46.8]} 13... Rc8 {[%clk 0:02:55.7]} 14.
Nd5 {[%clk 0:02:44]} 14... Bxd5 {[%clk 0:02:47.1]} 15. exd5 {[%clk 0:02:41.8]}
15... Nd7 {[%clk 0:02:43.9]} 16. Be3 {[%clk 0:02:36.5]} 16... Qc7 {[%clk
0:02:41.4]} 17. Qd2 {[%clk 0:02:36.1]} 17... a5 {[%clk 0:02:38.5]} 18. a3 {[%clk
0:02:34.6]} 18... axb4 {[%clk 0:02:38.9]} 19. axb4 {[%clk 0:02:35.1]} 19... Ra8
{[%clk 0:02:39.4]} 20. f4 {[%clk 0:02:29]} 20... Ra3 {[%clk 0:02:34.2]} 21. Rc2
{[%clk 0:02:27.6]} 21... Rfa8 {[%clk 0:02:31.4]} 22. Rfc1 {[%clk 0:02:27]} 22...
Ra1 {[%clk 0:02:31]} 23. h3 {[%clk 0:02:24.2]} 23... Rxc1+ {[%clk 0:02:30.8]}
24. Rxc1 {[%clk 0:02:24.3]} 24... Ra3 {[%clk 0:02:28.4]} 25. Rc2 {[%clk
0:02:19]} 25... f5 {[%clk 0:02:12.8]} 26. Bf3 {[%clk 0:02:14.9]} 26... Ra1+
{[%clk 0:02:10.4]} 27. Kh2 {[%clk 0:02:14.2]} 27... Qa7 {[%clk 0:02:07.9]} 28.
Bd4 {[%clk 0:02:10.9]} 28... Bxd4 {[%clk 0:02:05.3]} 29. Qxd4 {[%clk 0:02:11.8]}
29... Nf6 {[%clk 0:02:05.4]} 30. Re2 {[%clk 0:02:02.7]} 30... Kf7 {[%clk
0:01:52.1]} 31. Qe3 {[%clk 0:01:53.2]} 31... Ra3 {[%clk 0:01:39.2]} 32. Qe6+
{[%clk 0:01:50.6]} 32... Kf8 {[%clk 0:01:39.7]} 33. c5 {[%clk 0:01:46.7]} 33...
bxc5 {[%clk 0:01:38]} 34. bxc5 {[%clk 0:01:46.3]} 34... Ra6 {[%clk 0:01:07.8]}
35. c6 {[%clk 0:01:43.6]} 35... Ra4 {[%clk 0:01:01.2]} 36. Qc8+ {[%clk
0:01:38.9]} 36... Kg7 {[%clk 0:00:53.6]} 37. Qb7 {[%clk 0:01:26]} 37... Qxb7
{[%clk 0:00:51.3]} 38. cxb7 {[%clk 0:01:25.7]} 38... Rb4 {[%clk 0:00:51.6]} 39.
Rxe7+ {[%clk 0:01:25.3]} 39... Kh6 {[%clk 0:00:47]} 40. g4 {[%clk 0:01:02.6]}
40... fxg4 {[%clk 0:00:47.1]} 41. hxg4 {[%clk 0:01:03.5]} 41... g5 {[%clk
0:00:47.7]} 42. Re6 {[%clk 0:01:02.7]} 42... Rb2+ {[%clk 0:00:38.1]} 43. Kh3
{[%clk 0:00:59.1]} 43... Kg7 {[%clk 0:00:25.7]} 44. fxg5 {[%clk 0:00:57.7]}
44... Nd7 {[%clk 0:00:24.9]} 45. Re7+ {[%clk 0:00:57.7]} 1-0

[Event "*** Titled Tuesday Blitz"]
[Site "Chess.com"]
[Date "2021.03.02"]
[Round "7"]
[White "Tekushka"]
[Black "Kaslask"]
[Result "0-1"]
[WhiteElo "2422"]
[BlackElo "2294"]
[TimeControl "180+1"]
[EndTime "11:17:57 PST"]
[Termination "Kaslask won on time"]

1. e4 {[%clk 0:03:00.9]} 1... c5 {[%clk 0:02:58.8]} 2. Nf3 {[%clk 0:03:00.5]}
2... e6 {[%clk 0:02:58.7]} 3. d4 {[%clk 0:03:00]} 3... cxd4 {[%clk 0:02:58.7]}
4. Nxd4 {[%clk 0:03:00.3]} 4... Nf6 {[%clk 0:02:58.9]} 5. Nc3 {[%clk 0:02:59.8]}
5... Nc6 {[%clk 0:02:59]} 6. Ndb5 {[%clk 0:02:57.7]} 6... Bc5 {[%clk 0:02:56.8]}
7. Bf4 {[%clk 0:02:49.6]} 7... e5 {[%clk 0:02:51.1]} 8. Bg5 {[%clk 0:02:45.8]}
8... O-O {[%clk 0:02:09]} 9. Qd2 {[%clk 0:02:40.7]} 9... Bb4 {[%clk 0:02:03.4]}
10. a3 {[%clk 0:02:27.7]} 10... Bxc3 {[%clk 0:01:56.9]} 11. Nxc3 {[%clk
0:02:26.8]} 11... h6 {[%clk 0:01:55.2]} 12. Bh4 {[%clk 0:02:22.3]} 12... Nxe4
{[%clk 0:01:54.1]} 13. Bxd8 {[%clk 0:02:16.9]} 13... Nxd2 {[%clk 0:01:53.8]} 14.
Bc7 {[%clk 0:01:46.8]} 14... Nxf1 {[%clk 0:01:50.9]} 15. Rxf1 {[%clk 0:01:44.1]}
15... Re8 {[%clk 0:01:33.6]} 16. O-O-O {[%clk 0:01:43.6]} 16... b6 {[%clk
0:01:24.4]} 17. Nb5 {[%clk 0:01:33]} 17... Ba6 {[%clk 0:01:17.6]} 18. a4 {[%clk
0:01:17.3]} 18... Nd4 {[%clk 0:01:16.8]} 19. Rfe1 {[%clk 0:00:46.1]} 19... Nxb5
{[%clk 0:01:06.4]} 20. axb5 {[%clk 0:00:45.4]} 20... Bxb5 {[%clk 0:01:06]} 21.
Bxe5 {[%clk 0:00:40]} 21... Bc6 {[%clk 0:01:04]} 22. f3 {[%clk 0:00:39]} 22...
a5 {[%clk 0:00:58.7]} 23. Bc3 {[%clk 0:00:31.6]} 23... Rxe1 {[%clk 0:00:55.7]}
24. Rxe1 {[%clk 0:00:31.5]} 24... b5 {[%clk 0:00:54.7]} 25. Kd2 {[%clk
0:00:28.7]} 25... b4 {[%clk 0:00:53.7]} 26. Bd4 {[%clk 0:00:28.8]} 26... a4
{[%clk 0:00:50.2]} 27. Ra1 {[%clk 0:00:18.8]} 27... a3 {[%clk 0:00:47.9]} 28.
Bc5 {[%clk 0:00:10]} 28... axb2 {[%clk 0:00:36.5]} 29. Rc1 {[%clk 0:00:10.4]}
29... bxc1=Q+ {[%clk 0:00:35.4]} 0-1

[Event "*** Titled Tuesday Blitz"]
[Site "Chess.com"]
[Date "2021.03.02"]
[Round "7"]
[White "AlexPapasimakopoulos"]
[Black "SergeyShtyka"]
[Result "1-0"]
[WhiteElo "2597"]
[BlackElo "2468"]
[TimeControl "180+1"]
[EndTime "11:18:00 PST"]
[Termination "AlexPapasimakopoulos won on time"]

1. d4 {[%clk 0:03:00.9]} 1... c5 {[%clk 0:02:59.9]} 2. d5 {[%clk 0:03:00.8]}
2... e5 {[%clk 0:02:59.5]} 3. e4 {[%clk 0:02:55.8]} 3... d6 {[%clk 0:02:59.7]}
4. Nc3 {[%clk 0:02:50.8]} 4... Be7 {[%clk 0:02:59.8]} 5. Bb5+ {[%clk 0:02:42.4]}
5... Bd7 {[%clk 0:02:59.2]} 6. Nf3 {[%clk 0:02:39.8]} 6... a6 {[%clk 0:02:58.5]}
7. Bxd7+ {[%clk 0:02:36.3]} 7... Nxd7 {[%clk 0:02:58]} 8. a4 {[%clk 0:02:37]}
8... Ngf6 {[%clk 0:02:57.6]} 9. O-O {[%clk 0:02:35.2]} 9... O-O {[%clk
0:02:56.7]} 10. Nd2 {[%clk 0:02:35]} 10... Ne8 {[%clk 0:02:55.5]} 11. Nc4 {[%clk
0:02:34.5]} 11... Nc7 {[%clk 0:02:52.1]} 12. a5 {[%clk 0:02:32]} 12... Nb5
{[%clk 0:02:51.8]} 13. Na4 {[%clk 0:02:29]} 13... Bg5 {[%clk 0:02:45.5]} 14.
Nab6 {[%clk 0:02:26.2]} 14... Nxb6 {[%clk 0:02:43.5]} 15. Nxb6 {[%clk
0:02:27.1]} 15... Bxc1 {[%clk 0:02:33.2]} 16. Rxc1 {[%clk 0:02:03.7]} 16... Rb8
{[%clk 0:02:30.2]} 17. Qg4 {[%clk 0:02:03.4]} 17... g6 {[%clk 0:02:18.1]} 18. c3
{[%clk 0:02:03.1]} 18... f5 {[%clk 0:01:56.7]} 19. exf5 {[%clk 0:02:01.2]} 19...
Rxf5 {[%clk 0:01:57.6]} 20. f4 {[%clk 0:01:57.7]} 20... exf4 {[%clk 0:01:37.8]}
21. Rxf4 {[%clk 0:01:55.4]} 21... Rxf4 {[%clk 0:01:38.2]} 22. Qxf4 {[%clk
0:01:56.3]} 22... Qe7 {[%clk 0:01:37.1]} 23. Rf1 {[%clk 0:01:42.8]} 23... Rf8
{[%clk 0:01:14.1]} 24. Qxf8+ {[%clk 0:01:42.4]} 24... Qxf8 {[%clk 0:01:14.5]}
25. Rxf8+ {[%clk 0:01:43.3]} 25... Kxf8 {[%clk 0:01:15.1]} 26. Kf2 {[%clk
0:01:44.2]} 26... Ke7 {[%clk 0:01:11.3]} 27. Ke3 {[%clk 0:01:44.7]} 27... Nc7
{[%clk 0:01:06.4]} 28. Kf4 {[%clk 0:01:41.3]} 28... h6 {[%clk 0:01:05.6]} 29. h4
{[%clk 0:01:41.3]} 29... Kf6 {[%clk 0:01:00]} 30. g4 {[%clk 0:01:33]} 30... Ke7
{[%clk 0:00:45.9]} 31. Ke4 {[%clk 0:01:20.2]} 31... Ne8 {[%clk 0:00:31.5]} 32.
b3 {[%clk 0:00:58.9]} 32... h5 {[%clk 0:00:22.5]} 33. gxh5 {[%clk 0:00:57.8]}
33... gxh5 {[%clk 0:00:23]} 34. Kf5 {[%clk 0:00:58.2]} 34... Nf6 {[%clk
0:00:10.4]} 35. Nc8+ {[%clk 0:00:57.5]} 35... Kf7 {[%clk 0:00:03.5]} 36. Nxd6+
{[%clk 0:00:57]} 36... Kg7 {[%clk 0:00:04.4]} 37. c4 {[%clk 0:00:54.7]} 1-0

[Event "*** Titled Tuesday Blitz"]
[Site "Chess.com"]
[Date "2021.03.02"]
[Round "7"]
[White "nicolevalladar"]
[Black "Kostukov_Alex"]
[Result "0-1"]
[WhiteElo "1853"]
[BlackElo "2322"]
[TimeControl "180+1"]
[EndTime "11:18:02 PST"]
[Termination "Kostukov_Alex won by resignation"]

1. e4 {[%clk 0:03:00.9]} 1... c5 {[%clk 0:02:59.4]} 2. Nc3 {[%clk 0:03:00.1]}
2... g6 {[%clk 0:02:58.6]} 3. d3 {[%clk 0:02:59.3]} 3... Bg7 {[%clk 0:02:59.1]}
4. g3 {[%clk 0:02:59.2]} 4... Nc6 {[%clk 0:02:59.2]} 5. Bg2 {[%clk 0:02:59.5]}
5... d6 {[%clk 0:02:59.8]} 6. Be3 {[%clk 0:02:58.6]} 6... e5 {[%clk 0:03:00.1]}
7. Qd2 {[%clk 0:02:58.1]} 7... Nge7 {[%clk 0:03:00.5]} 8. Nf3 {[%clk 0:02:54.3]}
8... Nd4 {[%clk 0:02:58.3]} 9. Ne2 {[%clk 0:02:44.6]} 9... Bh3 {[%clk
0:02:52.8]} 10. O-O {[%clk 0:02:21.5]} 10... Nxf3+ {[%clk 0:02:43.8]} 11. Bxf3
{[%clk 0:02:18.5]} 11... Bxf1 {[%clk 0:02:43.6]} 12. Rxf1 {[%clk 0:02:14.3]}
12... O-O {[%clk 0:02:44.5]} 13. Bg2 {[%clk 0:02:08.5]} 13... Qd7 {[%clk
0:02:32.3]} 14. f4 {[%clk 0:02:07.6]} 14... f5 {[%clk 0:02:29.7]} 15. Bh3 {[%clk
0:01:55.4]} 15... Qc6 {[%clk 0:02:22.3]} 16. Bg2 {[%clk 0:01:47.2]} 16... fxe4
{[%clk 0:01:51.2]} 17. Bxe4 {[%clk 0:01:41.5]} 17... d5 {[%clk 0:01:43.5]} 18.
Bg2 {[%clk 0:01:40.5]} 18... Qd6 {[%clk 0:01:28.9]} 19. fxe5 {[%clk 0:01:13.7]}
19... Rxf1+ {[%clk 0:01:26.2]} 20. Bxf1 {[%clk 0:01:10.4]} 20... Bxe5 {[%clk
0:01:26.7]} 21. d4 {[%clk 0:01:04.7]} 21... cxd4 {[%clk 0:01:25.3]} 22. Nxd4
{[%clk 0:01:04.4]} 22... Nc6 {[%clk 0:01:21.6]} 23. Nb5 {[%clk 0:00:40.9]} 23...
Qd7 {[%clk 0:01:16]} 24. c3 {[%clk 0:00:37.9]} 24... a6 {[%clk 0:01:13.7]} 25.
Nd4 {[%clk 0:00:36]} 25... Nxd4 {[%clk 0:01:12.4]} 26. Bxd4 {[%clk 0:00:36.8]}
26... Bxd4+ {[%clk 0:01:11.3]} 27. Qxd4 {[%clk 0:00:37.7]} 27... b5 {[%clk
0:00:41]} 28. Bh3 {[%clk 0:00:29.4]} 28... Qa7 {[%clk 0:00:40.2]} 29. Be6+
{[%clk 0:00:22]} 29... Kf8 {[%clk 0:00:38.6]} 30. Qxa7 {[%clk 0:00:13]} 30...
Rxa7 {[%clk 0:00:39.5]} 31. Bxd5 {[%clk 0:00:12.8]} 31... Rd7 {[%clk 0:00:39.2]}
32. Bc6 {[%clk 0:00:10.4]} 32... Rd1+ {[%clk 0:00:38.1]} 33. Kg2 {[%clk
0:00:08.9]} 33... Rd2+ {[%clk 0:00:38.8]} 34. Kh3 {[%clk 0:00:08.7]} 34... Rxb2
{[%clk 0:00:39.7]} 0-1

[Event "*** Titled Tuesday Blitz"]
[Site "Chess.com"]
[Date "2021.03.02"]
[Round "7"]
[White "Onischuk_V"]
[Black "jefferyx"]
[Result "0-1"]
[WhiteElo "2820"]
[BlackElo "3023"]
[TimeControl "180+1"]
[EndTime "11:18:08 PST"]
[Termination "jefferyx won by resignation"]

1. Nf3 {[%clk 0:03:00.9]} 1... d5 {[%clk 0:02:54.4]} 2. g3 {[%clk 0:03:01.1]}
2... Nd7 {[%clk 0:02:54.5]} 3. Bg2 {[%clk 0:02:59.3]} 3... e5 {[%clk 0:02:54.5]}
4. O-O {[%clk 0:02:59.9]} 4... Bd6 {[%clk 0:02:54.8]} 5. c4 {[%clk 0:02:56.3]}
5... dxc4 {[%clk 0:02:46.7]} 6. Na3 {[%clk 0:02:44.9]} 6... Bxa3 {[%clk
0:02:41.7]} 7. bxa3 {[%clk 0:02:44.7]} 7... e4 {[%clk 0:02:41.2]} 8. Nd4 {[%clk
0:02:32]} 8... Ngf6 {[%clk 0:02:41]} 9. Bb2 {[%clk 0:02:17.7]} 9... O-O {[%clk
0:02:38.6]} 10. Qc2 {[%clk 0:02:07]} 10... Nb6 {[%clk 0:02:38.6]} 11. f3 {[%clk
0:02:05.2]} 11... c5 {[%clk 0:01:43.9]} 12. Nb5 {[%clk 0:02:01]} 12... a6 {[%clk
0:01:44]} 13. Nc3 {[%clk 0:01:54.5]} 13... exf3 {[%clk 0:01:44.3]} 14. Rxf3
{[%clk 0:01:53.3]} 14... Be6 {[%clk 0:01:34.7]} 15. Raf1 {[%clk 0:01:51.8]}
15... Nfd5 {[%clk 0:01:24.8]} 16. Nd1 {[%clk 0:01:39.3]} 16... Qg5 {[%clk
0:01:16.2]} 17. e4 {[%clk 0:01:16.9]} 17... Ne7 {[%clk 0:01:15.7]} 18. Ne3
{[%clk 0:01:14.1]} 18... Rad8 {[%clk 0:01:10.6]} 19. Bc3 {[%clk 0:01:11.1]}
19... Nc6 {[%clk 0:01:09.2]} 20. h4 {[%clk 0:00:48.8]} 20... Qe7 {[%clk
0:00:54.8]} 21. Rf5 {[%clk 0:00:29.9]} 21... Nd4 {[%clk 0:00:54]} 22. Qd1 {[%clk
0:00:28.8]} 22... Nd7 {[%clk 0:00:27.5]} 23. Qa1 {[%clk 0:00:15.5]} 23... Bxf5
{[%clk 0:00:22.1]} 24. Nxf5 {[%clk 0:00:14.3]} 24... Nxf5 {[%clk 0:00:20.7]} 25.
exf5 {[%clk 0:00:11.8]} 25... Nf6 {[%clk 0:00:20]} 26. Re1 {[%clk 0:00:09.5]}
26... Qd6 {[%clk 0:00:20.2]} 27. Re5 {[%clk 0:00:07.6]} 27... Rfe8 {[%clk
0:00:19.3]} 28. Bf3 {[%clk 0:00:07]} 28... Rxe5 {[%clk 0:00:19.3]} 0-1